bitfinex-derivatives/quotes_BTCF0:USTF0_20260111
["timestamp","ask_amount","ask_price","bid_price","bid_amount"]
[1768161649141,0.15192168,90730.0,90714.0,0.011039]
[1768161649443,0.0092296,90731.0,90714.0,0.011039]
[1768161650050,0.00551119,90725.0,90714.0,0.011039]
[1768161652145,0.00551119,90725.0,90713.0,0.02391703]
[1768161652146,0.00551119,90725.0,90716.0,0.011038]
[1768161652343,0.1030696,90740.0,90723.0,0.011037]
[1768161652553,0.1030696,90740.0,90725.0,0.011037]
[1768161652750,0.26602628,90740.0,90720.0,0.15192168]
[1768161652955,0.00551119,90737.0,90721.0,0.011038]
[1768161653346,0.00551119,90737.0,90723.0,0.011037]
[1768161653748,0.00551119,90737.0,90725.0,0.011037]
[1768161654150,0.00551119,90737.0,90722.0,0.011038]
[1768161654946,0.00551119,90737.0,90720.0,0.15192168]
[1768161655154,0.00551119,90737.0,90720.0,0.16295968]
[1768161655751,0.00551119,90737.0,90722.0,0.011038]
[1768161656757,0.00551119,90737.0,90724.0,0.011037]
[1768161657056,0.1141056,90740.0,90726.0,0.02070338]
[1768161657057,0.09384,90740.0,90726.0,0.02070338]
[1768161657258,0.09384,90740.0,90728.0,0.00966638]
[1768161657454,0.00551119,90736.0,90728.0,0.00966638]
[1768161657657,0.00551119,90736.0,90727.0,0.00957073]
[1768161657860,0.00551119,90736.0,90724.0,0.00966638]
[1768161658862,0.00551119,90736.0,90724.0,0.02070338]
[1768161659059,0.00551119,90736.0,90725.0,0.00966638]
[1768161659267,0.00551119,90736.0,90726.0,0.011037]
[1768161659453,0.00551119,90736.0,90725.0,0.00966638]
[1768161659653,0.00551119,90736.0,90725.0,0.02070338]
[1768161660158,0.00242458,90738.0,90725.0,0.02070338]
[1768161660460,0.00551119,90737.0,90724.0,0.00957073]
[1768161661060,0.01346058,90738.0,90724.0,0.00957073]
[1768161661257,0.01897177,90738.0,90724.0,0.00957073]
[1768161661566,0.0092296,90737.0,90719.0,0.00957073]
[1768161661863,0.00550998,90745.0,90733.0,0.00966638]
[1768161662064,0.0092296,90755.0,90739.0,0.011036]
[1768161662360,0.0092296,90755.0,90738.0,0.011036]
[1768161662657,0.00551119,90753.0,90735.0,0.00966638]
[1768161662962,0.00551119,90753.0,90739.0,0.011035]
[1768161663160,0.01474079,90753.0,90738.0,0.011036]
[1768161663861,0.01474079,90753.0,90740.0,0.15192168]
[1768161664249,0.00985256,90752.0,90738.0,0.011036]
[1768161664456,0.00985256,90752.0,90740.0,0.15192168]
[1768161664755,0.00985256,90737.0,90721.0,0.0938]
[1768161664962,0.00985256,90736.0,90724.0,0.011037]
[1768161665355,0.00912118,90737.0,90724.0,0.011037]
[1768161665566,0.01463237,90737.0,90724.0,0.011037]
[1768161665864,0.00551119,90737.0,90726.0,0.011037]
[1768161666059,0.00985256,90740.0,90726.0,0.011037]
[1768161666265,0.00551119,90736.0,90723.0,0.011037]
[1768161667557,0.00440921,90736.0,90723.0,0.011037]
[1768161668952,0.00440921,90736.0,90721.0,0.0938]
[1768161668953,0.00975788,90735.0,90721.0,0.0938]
[1768161669154,0.00975788,90725.0,90709.0,0.0938]
[1768161669468,0.00975788,90722.0,90709.0,0.01389561]
[1768161669666,0.00975788,90722.0,90705.0,0.0938]
[1768161669963,0.00911613,90723.0,90705.0,0.0938]
[1768161670164,0.011037,90724.0,90705.0,0.0938]
[1768161670466,0.011037,90724.0,90705.0,0.10301438]
[1768161670964,0.011038,90722.0,90705.0,0.10301438]
[1768161671359,0.00440921,90721.0,90705.0,0.10301438]
[1768161671566,0.00440921,90721.0,90705.0,0.10705665]
[1768161671963,0.01544721,90721.0,90705.0,0.10705665]
[1768161672354,0.01544721,90721.0,90705.0,0.0938]
[1768161672553,0.00440921,90721.0,90705.0,0.0938]
[1768161673266,0.00440921,90721.0,90705.0,0.10719482]
[1768161673866,0.00440921,90721.0,90706.0,0.01104]
[1768161674467,0.00440921,90721.0,90706.0,0.00921438]
[1768161674670,0.00440921,90721.0,90710.0,0.011039]
[1768161676561,0.01544721,90721.0,90708.0,0.00242538]
[1768161677362,0.00440921,90721.0,90708.0,0.00242538]
[1768161677863,0.011038,90720.0,90708.0,0.00242538]
[1768161678064,0.011039,90712.0,90694.0,0.02025538]
[1768161678372,0.00975788,90712.0,90696.0,0.01117649]
[1768161678563,0.01887401,90716.0,90696.0,0.01117649]
[1768161678973,0.0938,90715.0,90696.0,0.02433805]
[1768161679567,0.011039,90714.0,90696.0,0.02433805]
[1768161679771,0.0938,90715.0,90696.0,0.02433805]
[1768161679971,0.104838,90715.0,90696.0,0.02433805]
[1768161681068,0.104838,90715.0,90698.0,0.011041]
[1768161681872,0.11459588,90715.0,90696.0,0.01329705]
[1768161682073,0.11459588,90715.0,90697.0,0.011041]
[1768161684076,0.00440921,90705.0,90697.0,0.011041]
[1768161685976,0.00440921,90705.0,90698.0,0.01104]
[1768161686775,0.00440921,90705.0,90696.0,0.01329705]
[1768161687173,0.011039,90714.0,90696.0,0.01329705]
[1768161687380,0.011039,90712.0,90696.0,0.02433805]
[1768161687776,0.11459688,90715.0,90696.0,0.02433805]
[1768161687980,0.11459688,90715.0,90699.0,0.01104]
[1768161688575,0.00911613,90716.0,90699.0,0.01104]
[1768161688576,0.10291613,90723.0,90705.0,0.00921438]
[1768161688972,0.011038,90722.0,90705.0,0.02025438]
[1768161689371,0.02079588,90722.0,90702.0,0.00928875]
[1768161689573,0.00975788,90720.0,90702.0,0.00928875]
[1768161689879,0.011039,90714.0,90702.0,0.00928875]
[1768161690075,0.00975788,90720.0,90702.0,0.00928875]
[1768161690582,0.011039,90711.0,90702.0,0.00928875]
[1768161690881,0.00975788,90720.0,90701.0,0.00921438]
[1768161691083,0.00975788,90719.0,90701.0,0.00921438]
[1768161691584,0.01104,90701.0,90670.0,0.1518732]
[1768161692280,0.011041,90692.0,90672.0,0.011044]
[1768161692578,0.00014199,90691.0,90683.0,0.0938]
[1768161693482,0.00014199,90691.0,90683.0,3.8e-07]
[1768161693784,0.011042,90688.0,90677.0,0.0938]
[1768161694376,0.00950602,90691.0,90669.0,0.10297685]
[1768161694572,0.011043,90681.0,90669.0,0.0938]
[1768161694777,0.011042,90684.0,90669.0,0.0938]
[1768161695085,0.011043,90681.0,90669.0,0.0938]
[1768161695283,0.00975298,90687.0,90669.0,0.10690934]
[1768161695486,0.011043,90680.0,90669.0,0.11627945]
[1768161695683,0.011043,90680.0,90670.0,0.00937011]
[1768161696078,0.011043,90681.0,90670.0,0.00937011]
[1768161696281,0.011043,90679.0,90670.0,0.00937011]
[1768161696474,0.011043,90682.0,90670.0,0.00937011]
[1768161696673,0.011043,90680.0,90670.0,0.00937011]
[1768161698089,0.011043,90681.0,90670.0,0.00937011]
[1768161698275,0.00975298,90687.0,90670.0,0.00937011]
[1768161698482,0.011043,90677.0,90670.0,0.00937011]
[1768161698678,0.011043,90677.0,90669.0,0.10690934]
[1768161698878,0.011043,90674.0,90669.0,3.4e-07]
[1768161699192,0.011043,90677.0,90669.0,0.01339735]
[1768161699389,0.01911701,90679.0,90665.0,0.01370551]
[1768161699594,0.00975298,90679.0,90665.0,0.01370551]
[1768161699792,0.011044,90673.0,90665.0,0.01370551]
[1768161700382,0.011044,90671.0,90661.0,0.09384]
[1768161701087,0.011044,90672.0,90661.0,0.10722382]
[1768161702090,0.011044,90672.0,90661.0,0.09384]
[1768161702289,0.01911701,90675.0,90657.0,0.00532003]
[1768161702290,0.011044,90670.0,90657.0,0.00532003]
[1768161702491,0.00010497,90669.0,90657.0,0.00532003]
[1768161702702,0.00975298,90689.0,90660.0,0.00555999]
[1768161702891,0.011042,90687.0,90671.0,0.00555999]
[1768161703089,0.011042,90685.0,90671.0,0.00555999]
[1768161703286,0.011042,90685.0,90670.0,0.00917685]
[1768161703491,0.011042,90685.0,90667.0,0.00555999]
[1768161703691,0.09384,90687.0,90668.0,0.011044]
[1768161703988,0.011042,90686.0,90668.0,0.011044]
[1768161704596,0.011042,90686.0,90668.0,0.01660399]
[1768161705181,0.00936403,90694.0,90673.0,0.00573578]
[1768161705586,0.01911701,90694.0,90673.0,0.00573578]
[1768161705789,0.11295701,90693.0,90673.0,0.00573578]
[1768161705990,0.00936403,90692.0,90673.0,0.00573578]
[1768161706191,0.09384,90691.0,90673.0,0.01677978]
[1768161706387,0.09384,90691.0,90664.0,0.01491263]
[1768161706587,0.00936403,90678.0,90663.0,0.09384]
[1768161706792,0.011043,90678.0,90663.0,0.09384]
[1768161707102,0.00936403,90676.0,90657.0,0.01928689]
[1768161707290,0.011044,90672.0,90655.0,0.011046]
[1768161707597,0.02079598,90675.0,90657.0,0.011045]
[1768161707789,0.00975298,90675.0,90657.0,0.011045]
[1768161708598,0.011044,90674.0,90657.0,0.011045]
[1768161708798,0.00975298,90675.0,90659.0,0.011045]
[1768161708998,0.011043,90677.0,90658.0,0.00518415]
[1768161709399,0.00936403,90679.0,90658.0,0.01622915]
[1768161709701,0.011044,90673.0,90658.0,0.00518415]
[1768161710702,0.011043,90676.0,90658.0,0.01622915]
[1768161710907,0.011044,90673.0,90658.0,0.00518415]
[1768161712004,0.011043,90676.0,90659.0,0.011045]
[1768161712308,0.00975298,90676.0,90659.0,0.00518713]
[1768161713798,0.00975298,90674.0,90654.0,0.09940519]
[1768161713998,0.00936403,90673.0,90654.0,0.09940519]
[1768161714507,0.00936403,90673.0,90654.0,0.11296549]
[1768161714702,0.00936403,90673.0,90655.0,0.00556519]
[1768161715005,0.00975298,90674.0,90655.0,0.00556519]
[1768161715204,0.00975298,90674.0,90657.0,0.011045]
[1768161716499,0.00936403,90651.0,90618.0,0.86234779]
[1768161716699,0.00936403,90647.0,90632.0,0.09384]
[1768161716899,0.01911701,90643.0,90632.0,0.09384]
[1768161717312,0.01911701,90657.0,90634.0,0.00289009]
[1768161717507,0.011046,90652.0,90635.0,0.00289009]
[1768161717809,0.011047,90648.0,90635.0,0.00289009]
[1768161718001,0.011047,90648.0,90633.0,0.00917685]
[1768161718608,0.01117462,90651.0,90633.0,0.00917685]
[1768161718795,0.011047,90649.0,90633.0,0.00917685]
[1768161719498,0.00012862,90651.0,90633.0,0.00917685]
[1768161719711,0.01117462,90651.0,90633.0,0.00917685]
[1768161720502,0.00012862,90651.0,90634.0,0.011048]
[1768161720699,0.00012862,90651.0,90633.0,0.00917685]
[1768161721302,0.00012862,90651.0,90632.0,0.09384]
[1768161721709,0.011047,90645.0,90632.0,0.09384]
[1768161722006,0.01117462,90651.0,90632.0,0.09384]
[1768161722205,0.00012862,90651.0,90632.0,0.104889]
[1768161722410,0.00012862,90651.0,90632.0,0.10749204]
[1768161722810,0.00012862,90651.0,90632.0,0.09644304]
[1768161723011,0.011046,90650.0,90632.0,0.09644304]
[1768161723403,0.011046,90650.0,90632.0,0.10749204]
[1768161724106,0.011045,90659.0,90641.0,0.00212062]
[1768161724311,0.00937235,90663.0,90644.0,0.001992]
[1768161724511,0.011046,90657.0,90644.0,0.095872]
[1768161724711,0.011045,90658.0,90644.0,0.095872]
[1768161725116,0.011045,90661.0,90645.0,0.00205415]
[1768161725306,0.011045,90665.0,90650.0,0.00205415]
[1768161725610,0.02041635,90669.0,90650.0,0.00205415]
[1768161725815,0.011044,90669.0,90652.0,0.00205415]
[1768161726502,0.011044,90667.0,90652.0,0.00205415]
[1768161726701,0.011044,90667.0,90648.0,0.00205415]
[1768161726902,0.011044,90667.0,90649.0,0.00193086]
[1768161727116,0.011045,90665.0,90649.0,0.00193086]
[1768161727308,0.011045,90665.0,90650.0,0.15211616]
[1768161727502,0.011044,90668.0,90650.0,0.15211616]
[1768161727703,0.011044,90668.0,90650.0,0.16509302]
[1768161727898,0.011044,90668.0,90651.0,0.01184116]
[1768161728204,0.011045,90665.0,90652.0,0.00193086]
[1768161728710,0.011044,90668.0,90652.0,0.00193086]
[1768161728909,0.011044,90666.0,90652.0,0.00193086]
[1768161729414,0.011045,90664.0,90651.0,0.0099103]
[1768161730605,0.011044,90667.0,90651.0,0.0099103]
[1768161730811,0.011045,90664.0,90651.0,0.0099103]
[1768161731311,0.011044,90667.0,90651.0,0.0099103]
[1768161731507,0.011044,90667.0,90651.0,0.01156815]
[1768161731711,0.161662,90670.0,90651.0,0.01156815]
[1768161732610,0.011045,90664.0,90651.0,0.01156815]
[1768161733503,0.011044,90669.0,90647.0,0.00184098]
[1768161733704,0.011045,90664.0,90647.0,0.00184098]
[1768161734006,0.011045,90662.0,90647.0,0.00184098]
[1768161734208,0.011045,90663.0,90647.0,0.00184098]
[1768161734407,0.00975073,90667.0,90647.0,0.00184098]
[1768161734809,0.00975073,90667.0,90647.0,0.01288798]
[1768161735009,0.011045,90664.0,90649.0,0.00086115]
[1768161735315,0.011045,90664.0,90651.0,0.00086115]
[1768161737303,0.15211616,90670.0,90651.0,0.00086115]
[1768161737815,0.161662,90670.0,90651.0,0.00086115]
[1768161738006,0.00975073,90674.0,90656.0,0.00085551]
[1768161738315,0.011044,90673.0,90656.0,0.09473551]
[1768161738502,0.00975073,90674.0,90656.0,0.09473551]
[1768161738814,0.011043,90675.0,90660.0,0.00085551]
[1768161739002,0.011043,90675.0,90660.0,0.15297167]
[1768161739201,0.011043,90675.0,90660.0,0.00085551]
[1768161739404,0.011043,90675.0,90660.0,0.15297167]
[1768161740012,0.011043,90676.0,90661.0,0.000871]
[1768161741316,0.011043,90675.0,90661.0,0.000871]
[1768161741516,0.011043,90675.0,90660.0,0.15211616]
[1768161741517,0.011044,90672.0,90660.0,0.15211616]
[1768161741910,0.011044,90672.0,90659.0,0.00955898]
[1768161742704,0.01197202,90678.0,90659.0,0.00955898]
[1768161742705,0.011043,90674.0,90659.0,0.00955898]
[1768161742911,0.01197202,90678.0,90659.0,0.00998055]
[1768161743111,0.01929657,90676.0,90660.0,0.15211616]
[1768161743620,0.01929657,90676.0,90656.0,0.09430157]
[1768161743819,0.011043,90674.0,90657.0,0.011046]
[1768161744018,0.011044,90673.0,90657.0,0.011046]
[1768161744218,0.011044,90673.0,90657.0,0.01146757]
[1768161744622,0.011044,90673.0,90656.0,0.09234757]
[1768161744824,0.011043,90675.0,90659.0,0.011045]
[1768161745117,0.011044,90673.0,90656.0,0.10339357]
[1768161745322,0.011044,90673.0,90656.0,0.11295255]
[1768161745522,0.011044,90673.0,90658.0,0.011045]
[1768161745913,0.011044,90673.0,90657.0,0.011046]
[1768161746622,0.011044,90673.0,90660.0,0.15211616]
[1768161747013,0.011044,90672.0,90660.0,0.15211616]
[1768161747214,0.011044,90670.0,90660.0,0.15211616]
[1768161748620,0.011044,90673.0,90660.0,0.15211616]
[1768161748825,0.011043,90675.0,90660.0,0.16316116]
[1768161749017,0.011043,90677.0,90660.0,0.16316116]
[1768161749412,0.01346918,90678.0,90662.0,0.00955898]
[1768161750821,0.01346918,90678.0,90663.0,0.011045]
[1768161753226,0.00242618,90678.0,90660.0,0.15211616]
[1768161753428,0.00242618,90678.0,90663.0,0.00955898]
[1768161754031,0.00242618,90678.0,90668.0,0.15211616]
[1768161754330,0.00242618,90678.0,90672.0,0.011044]
[1768161754532,0.00242618,90678.0,90668.0,0.24599616]
[1768161754719,0.00242618,90678.0,90668.0,0.09388]
[1768161754926,0.00551362,90685.0,90668.0,0.104924]
[1768161755131,0.00551362,90685.0,90670.0,0.011044]
[1768161755631,0.00551362,90685.0,90668.0,0.09388]
[1768161755632,0.01655562,90685.0,90668.0,0.09388]
[1768161755930,0.011042,90683.0,90668.0,0.09388]
[1768161756533,0.0250836,90685.0,90668.0,0.104924]
[1768161756925,0.011042,90684.0,90668.0,0.09388]
[1768161758332,0.011042,90683.0,90668.0,0.09388]
[1768161759732,0.011042,90683.0,90668.0,0.19388]
[1768161760234,0.0250836,90685.0,90668.0,0.19388]
[1768161760626,0.011042,90684.0,90668.0,0.19388]
[1768161761330,0.011042,90684.0,90668.0,0.204924]
[1768161761933,0.0250836,90685.0,90668.0,0.204924]
[1768161762134,0.0250836,90685.0,90669.0,0.011044]
[1768161762525,0.011042,90684.0,90668.0,0.19388]
[1768161763126,0.011042,90684.0,90668.0,0.204924]
[1768161766142,0.0263482,90685.0,90668.0,0.204924]
[1768161767138,0.0263482,90685.0,90669.0,0.011044]
[1768161768242,0.0153062,90685.0,90671.0,0.011044]
[1768161768435,0.0263482,90685.0,90669.0,0.011044]
[1768161768735,0.0263482,90685.0,90670.0,0.15211616]
[1768161769536,0.0263482,90685.0,90670.0,0.16316016]
[1768161769837,0.0153062,90685.0,90670.0,0.16316016]
[1768161770039,0.0153062,90685.0,90671.0,0.011044]
[1768161770938,0.00551362,90685.0,90671.0,0.011044]
[1768161771241,0.00551362,90685.0,90670.0,0.15211616]
[1768161771442,0.011042,90684.0,90670.0,0.15211616]
[1768161771639,0.011042,90684.0,90668.0,0.16488]
[1768161772740,0.011042,90682.0,90668.0,0.16488]
[1768161773644,0.01655562,90685.0,90668.0,0.16488]
[1768161774140,0.011042,90683.0,90668.0,0.16488]
[1768161774642,0.00551362,90685.0,90669.0,0.011044]
[1768161774843,0.00551362,90685.0,90668.0,0.175924]
[1768161775540,0.00551362,90685.0,90670.0,0.011044]
[1768161775841,0.00551362,90685.0,90671.0,0.011044]
[1768161776042,0.00551362,90685.0,90672.0,0.011044]
[1768161777040,0.00551362,90685.0,90671.0,0.00931779]
[1768161777941,0.00551362,90685.0,90672.0,0.00931779]
[1768161778145,0.00979258,90696.0,90674.0,0.00931779]
[1768161778645,0.01956998,90696.0,90674.0,0.00931779]
[1768161778837,0.011042,90688.0,90674.0,0.00931779]
[1768161779749,0.011041,90691.0,90674.0,0.00931779]
[1768161779957,0.10488,90701.0,90674.0,0.00931779]
[1768161779958,0.01956998,90694.0,90674.0,0.00931779]
[1768161780140,0.15211616,90690.0,90674.0,0.00931779]
[1768161780444,0.011042,90686.0,90674.0,0.00931779]
[1768161780744,0.15211616,90690.0,90674.0,0.00931779]
[1768161780938,0.011042,90687.0,90674.0,0.00931779]
[1768161781133,0.011042,90685.0,90674.0,0.00931779]
[1768161782048,0.011042,90687.0,90674.0,0.00931779]
[1768161782247,0.011042,90687.0,90671.0,0.011044]
[1768161785244,0.00979258,90694.0,90672.0,0.00935965]
[1768161785550,0.011042,90690.0,90673.0,0.00935965]
[1768161786540,0.011042,90690.0,90674.0,0.011043]
[1768161786742,0.15211616,90690.0,90674.0,0.011043]
[1768161787144,0.011042,90689.0,90673.0,0.00935965]
[1768161787851,0.011042,90689.0,90673.0,0.02040365]
[1768161788343,0.011041,90692.0,90673.0,0.02040365]
[1768161789256,0.011042,90689.0,90670.0,0.011044]
[1768161789451,0.0197827,90688.0,90671.0,0.09384]
[1768161789749,0.00999586,90685.0,90671.0,0.09384]
[1768161790050,0.011043,90682.0,90671.0,0.09384]
[1768161791040,0.011042,90683.0,90671.0,0.09384]
[1768161792352,0.011043,90681.0,90668.0,0.1]
[1768161792544,0.011042,90683.0,90672.0,0.09384]
[1768161795055,0.00978684,90685.0,90672.0,0.09384]
[1768161795957,0.00978684,90685.0,90672.0,0.104884]
[1768161796347,0.02103786,90688.0,90672.0,0.104884]
[1768161796748,0.011042,90686.0,90672.0,0.104884]
[1768161796957,0.011042,90684.0,90672.0,0.09384]
[1768161798151,0.011042,90683.0,90672.0,0.09384]
[1768161798953,0.011042,90685.0,90672.0,0.09384]
[1768161799252,0.011042,90684.0,90672.0,0.09384]
[1768161799759,0.00978684,90688.0,90672.0,0.09384]
[1768161799760,0.011042,90683.0,90672.0,0.09384]
[1768161800846,0.00978684,90688.0,90672.0,0.09384]
[1768161801050,0.011042,90686.0,90672.0,0.09384]
[1768161801854,0.00978684,90688.0,90672.0,0.09384]
[1768161802059,0.02082884,90688.0,90672.0,0.104884]
[1768161802363,0.011042,90684.0,90672.0,0.09384]
[1768161803778,0.011042,90687.0,90672.0,0.09384]
[1768161803979,0.011042,90684.0,90672.0,0.09384]
[1768161804580,0.011042,90683.0,90672.0,0.09384]
[1768161805180,0.00978684,90688.0,90672.0,0.09384]
[1768161805881,0.011042,90686.0,90672.0,0.09384]
[1768161807171,0.02082884,90688.0,90672.0,0.104884]
[1768161807985,0.0197827,90693.0,90672.0,0.09384]
[1768161808181,0.0308237,90693.0,90676.0,0.011043]
[1768161808776,0.0308237,90693.0,90677.0,0.011043]
[1768161808970,0.011041,90692.0,90675.0,0.011043]
[1768161811978,0.0197827,90693.0,90672.0,0.10338642]
[1768161812580,0.0197827,90693.0,90676.0,0.011043]
[1768161812982,0.011042,90690.0,90672.0,0.10338642]
[1768161814281,0.011042,90689.0,90672.0,0.10338642]
[1768161814891,0.011041,90692.0,90675.0,0.011043]
[1768161816090,0.011041,90692.0,90677.0,0.011043]
[1768161816991,0.011041,90692.0,90674.0,0.011043]
[1768161817891,0.011041,90692.0,90676.0,0.011043]
[1768161820494,0.011041,90691.0,90672.0,0.10338642]
[1768161821394,0.011041,90691.0,90674.0,0.011043]
[1768161822995,0.011041,90691.0,90675.0,0.011043]
[1768161823989,0.0308237,90693.0,90672.0,0.10338642]
[1768161825283,0.011041,90691.0,90673.0,0.09384]
[1768161825486,0.0308237,90693.0,90676.0,0.011043]
[1768161825799,0.011041,90691.0,90676.0,0.011043]
[1768161826294,0.011041,90691.0,90674.0,0.011043]
[1768161828195,0.011042,90690.0,90674.0,0.011043]
[1768161828892,0.01922977,90691.0,90673.0,0.09384]
[1768161829089,0.00944089,90689.0,90673.0,0.09384]
[1768161829285,0.011042,90683.0,90673.0,0.09384]
[1768161831401,0.011042,90685.0,90673.0,0.09384]
[1768161834901,0.011043,90682.0,90673.0,0.09384]
[1768161836707,0.011042,90684.0,90673.0,0.09384]
[1768161837006,0.011042,90683.0,90673.0,0.09384]
[1768161838706,0.01922977,90688.0,90673.0,0.09384]
[1768161839107,0.00978888,90688.0,90673.0,0.09384]
[1768161840005,0.011043,90682.0,90673.0,0.09384]
[1768161840306,0.011042,90684.0,90673.0,0.09384]
[1768161841798,0.011043,90682.0,90673.0,0.09384]
[1768161843905,0.011042,90685.0,90673.0,0.09384]
[1768161850307,0.011042,90684.0,90673.0,0.09384]
[1768161854016,0.011042,90686.0,90673.0,0.09384]
[1768161854712,0.15205443,90690.0,90673.0,0.09384]
[1768161855015,0.011042,90684.0,90673.0,0.09384]
[1768161856115,0.011042,90683.0,90673.0,0.09384]
[1768161856506,0.011042,90683.0,90674.0,0.09384]
[1768161858120,0.15205443,90690.0,90674.0,0.09384]
[1768161858830,0.011043,90680.0,90674.0,0.09384]
[1768161859020,0.17140904,90684.0,90668.0,0.1]
[1768161859213,0.011043,90679.0,90669.0,0.09384]
[1768161859519,0.011043,90675.0,90670.0,0.09384]
[1768161860612,0.00995237,90692.0,90671.0,0.02007566]
[1768161860812,0.011042,90684.0,90672.0,0.00903166]
[1768161861012,0.01935461,90695.0,90672.0,0.00903166]
[1768161861013,0.011042,90683.0,90672.0,0.00903166]
[1768161861421,0.1620068,90690.0,90670.0,0.09384]
[1768161861624,0.011043,90681.0,90670.0,0.09384]
[1768161865130,0.011042,90684.0,90670.0,0.09384]
[1768161865426,0.011043,90682.0,90670.0,0.09384]
[1768161865724,0.011042,90685.0,90670.0,0.09384]
[1768161865930,0.011042,90684.0,90671.0,0.00903166]
[1768161866526,0.011042,90683.0,90671.0,0.00903166]
[1768161867028,0.011042,90685.0,90671.0,0.00903166]
[1768161869425,0.011042,90684.0,90671.0,0.00903166]
[1768161869627,0.00995237,90685.0,90670.0,0.09384]
[1768161869831,0.15205443,90681.0,90669.0,0.09384]
[1768161870428,0.011043,90677.0,90669.0,0.09384]
[1768161876638,0.01935461,90684.0,90669.0,0.09384]
[1768161876934,0.011043,90678.0,90669.0,0.09384]
[1768161877136,0.011043,90681.0,90669.0,0.09384]
[1768161877336,0.011043,90681.0,90670.0,0.00085973]
[1768161877525,0.02059384,90686.0,90669.0,0.09384]
[1768161877836,0.00955184,90686.0,90669.0,0.09469973]
[1768161878033,0.011043,90679.0,90669.0,0.09469973]
[1768161878225,0.011043,90676.0,90669.0,0.09384]
[1768161878429,0.15205443,90680.0,90669.0,0.09384]
[1768161878827,0.00991904,90684.0,90669.0,0.09384]
[1768161879139,0.15205443,90680.0,90669.0,0.09384]
[1768161880532,0.011044,90674.0,90669.0,0.09384]
[1768161882237,0.15205443,90680.0,90669.0,0.09384]
[1768161882238,0.011043,90677.0,90669.0,0.09384]
[1768161883739,0.011043,90679.0,90669.0,0.09384]
[1768161884935,0.15205443,90680.0,90669.0,0.09384]
[1768161885142,0.011043,90677.0,90669.0,0.09384]
[1768161886238,0.15205443,90680.0,90669.0,0.09384]
[1768161889545,0.011043,90681.0,90669.0,0.09384]
[1768161889843,0.15205443,90690.0,90671.0,0.00091782]
[1768161890343,0.011042,90684.0,90671.0,0.00091782]
[1768161891240,0.17152531,90690.0,90671.0,0.00091782]
[1768161891732,0.15205443,90690.0,90674.0,0.01176191]
[1768161892043,0.011042,90689.0,90674.0,0.00071891]
[1768161892232,0.011042,90689.0,90674.0,0.01176191]
[1768161894248,0.15205443,90690.0,90674.0,0.01176191]
[1768161896853,0.011042,90689.0,90674.0,0.00071891]
[1768161897042,0.011042,90689.0,90675.0,0.00047762]
[1768161897637,0.01947088,90695.0,90675.0,0.00047762]
[1768161897849,0.00955184,90694.0,90676.0,0.00047762]
[1768161898549,0.011041,90692.0,90676.0,0.00047762]
[1768161898751,0.00955184,90694.0,90676.0,0.00047762]
[1768161899048,0.011041,90693.0,90676.0,0.00047762]
[1768161900239,0.011041,90693.0,90677.0,0.011043]
[1768161900440,0.00955184,90694.0,90681.0,0.011043]
[1768161900940,0.00955184,90694.0,90677.0,0.00014624]
[1768161900941,0.011041,90693.0,90677.0,0.00014624]
[1768161901149,0.011041,90691.0,90675.0,0.00944259]
[1768161901447,0.104881,90696.0,90681.0,0.00015308]
[1768161901641,0.104881,90696.0,90684.0,0.00015308]
[1768161901946,0.104881,90696.0,90683.0,0.00944259]
[1768161901947,0.11882329,90705.0,90686.0,0.00015308]
[1768161902347,0.01104,90700.0,90686.0,0.00015308]
[1768161902855,0.11882329,90705.0,90686.0,0.01469905]
[1768161903149,0.01104,90702.0,90686.0,0.02574105]
[1768161903742,0.01104,90702.0,90686.0,0.02174105]
[1768161903942,0.01104,90704.0,90686.0,0.02174105]
[1768161904147,0.01104,90702.0,90684.0,0.011042]
[1768161904348,0.01104,90702.0,90686.0,0.011042]
[1768161905749,0.12986329,90705.0,90684.0,0.0151176]
[1768161905954,0.12986329,90705.0,90683.0,0.10328259]
[1768161906158,0.12986329,90705.0,90688.0,0.011042]
[1768161907146,0.01104,90703.0,90688.0,0.011042]
[1768161908960,0.01104,90702.0,90685.0,0.011042]
[1768161909260,0.01104,90702.0,90686.0,0.011042]
[1768161909454,0.03005638,90704.0,90686.0,0.011042]
[1768161909653,0.03005638,90704.0,90687.0,0.011042]
[1768161909854,0.02089191,90704.0,90687.0,0.011042]
[1768161910055,0.01104,90702.0,90684.0,0.02413232]
[1768161910553,0.01901638,90704.0,90686.0,0.011042]
[1768161911273,0.00916447,90703.0,90688.0,0.011042]
[1768161911558,0.00916447,90698.0,90683.0,0.09384]
[1768161911763,0.00985191,90697.0,90683.0,0.09384]
[1768161912064,0.01104,90701.0,90671.0,0.011044]
[1768161912065,0.00916447,90691.0,90671.0,0.011044]
[1768161912254,0.00985191,90685.0,90668.0,0.19384]
[1768161912460,0.00916447,90684.0,90668.0,0.19384]
[1768161912656,0.01901638,90674.0,90654.0,0.02041026]
[1768161912858,0.01901638,90674.0,90652.0,0.13888177]
[1768161912859,0.01901638,90668.0,90652.0,0.09384]
[1768161913059,0.01901638,90668.0,90652.0,0.104886]
[1768161913459,0.00985191,90667.0,90652.0,0.11985366]
[1768161913671,0.00916447,90664.0,90648.0,0.00242698]
[1768161913961,0.00916447,90656.0,90648.0,0.00242698]
[1768161914156,0.00916447,90654.0,90636.0,0.02549866]
[1768161914353,0.01901638,90653.0,90636.0,0.01445066]
[1768161914567,0.01901638,90653.0,90635.0,0.00912721]
[1768161914771,0.00985191,90664.0,90641.0,0.00936426]
[1768161915063,0.00985191,90664.0,90643.0,0.00912721]
[1768161915265,0.00985191,90670.0,90648.0,0.00912721]
[1768161915469,0.10369191,90670.0,90650.0,0.00912721]
[1768161915654,0.00916447,90673.0,90651.0,0.00912721]
[1768161915858,0.10369191,90675.0,90654.0,0.01849147]
[1768161916058,0.10369191,90675.0,90643.0,0.09384]
[1768161916059,0.00985191,90668.0,90648.0,0.01849147]
[1768161916259,0.00985191,90666.0,90645.0,0.00912721]
[1768161916465,0.00985191,90666.0,90647.0,0.00912721]
[1768161916667,0.01901638,90666.0,90647.0,0.00912721]
[1768161917070,0.01901638,90660.0,90643.0,0.09384]
[1768161917270,0.00985191,90656.0,90643.0,0.09384]
[1768161917769,0.01901638,90656.0,90643.0,0.09384]
[1768161918270,0.00916447,90660.0,90643.0,0.09384]
[1768161918470,0.01901638,90660.0,90643.0,0.09384]